[Event "Live Chess"]
[Site "Chess.com"]
[Date "2024.06.01"]
[Round "-"]
[White "oscalik"]
[Black "Queensandpawns"]
[Result "0-1"]
[WhiteElo "2368"]
[BlackElo "2450"]
[TimeControl "300"]
[EndTime "11:22:13 PDT"]
[Termination "Queensandpawns won by resignation"]

1. e4 {[%clk 0:04:59.2]} 1... c6 {[%clk 0:04:59.6]} 2. Nc3 {[%clk 0:04:57.8]}
2... d5 {[%clk 0:04:59]} 3. Qf3 {[%clk 0:04:57]} 3... dxe4 {[%clk 0:04:55.8]} 4.
Nxe4 {[%clk 0:04:54.9]} 4... Nf6 {[%clk 0:04:55.5]} 5. b3 {[%clk 0:04:53.3]}
5... Qd5 {[%clk 0:04:53.7]} 6. Bd3 {[%clk 0:04:50.8]} 6... Qe5 {[%clk
0:04:46.8]} 7. c3 {[%clk 0:04:42.4]} 7... Bf5 {[%clk 0:04:44.9]} 8. Qe3 {[%clk
0:04:26.7]} 8... Nxe4 {[%clk 0:04:19.4]} 9. f3 {[%clk 0:04:25.3]} 9... Nc5
{[%clk 0:04:18.8]} 10. Bxf5 {[%clk 0:04:11.9]} 10... Qxf5 {[%clk 0:04:18.7]} 11.
d4 {[%clk 0:04:09.5]} 11... Ncd7 {[%clk 0:04:13.4]} 12. g4 {[%clk 0:04:08.4]}
12... Qe6 {[%clk 0:04:11.8]} 13. h4 {[%clk 0:04:07]} 13... Qxe3+ {[%clk
0:04:10.5]} 14. Bxe3 {[%clk 0:04:05.9]} 14... e5 {[%clk 0:04:10.4]} 15. Ne2
{[%clk 0:04:04]} 15... Na6 {[%clk 0:04:07.8]} 16. O-O-O {[%clk 0:04:02.8]} 16...
O-O-O {[%clk 0:04:06.6]} 17. dxe5 {[%clk 0:03:58.5]} 17... Ba3+ {[%clk
0:04:05.1]} 18. Kb1 {[%clk 0:03:57.6]} 18... Nxe5 {[%clk 0:04:05]} 19. Bg5
{[%clk 0:03:57.4]} 19... f6 {[%clk 0:04:02.1]} 20. Bf4 {[%clk 0:03:56.6]} 20...
Nxf3 {[%clk 0:04:00.5]} 21. Rdf1 {[%clk 0:03:53.6]} 21... Nd2+ {[%clk
0:03:58.6]} 22. Bxd2 {[%clk 0:03:52.4]} 22... Rxd2 {[%clk 0:03:58.2]} 0-1

[Event "Live Chess"]
[Site "Chess.com"]
[Date "2024.06.01"]
[Round "-"]
[White "FlyingChessKestrel13"]
[Black "TJ-W"]
[Result "1-0"]
[WhiteElo "2096"]
[BlackElo "1551"]
[TimeControl "300"]
[EndTime "11:22:14 PDT"]
[Termination "FlyingChessKestrel13 won by checkmate"]

1. e4 {[%clk 0:04:58.3]} 1... e5 {[%clk 0:04:57.1]} 2. Nf3 {[%clk 0:04:57.4]}
2... Nc6 {[%clk 0:04:55.5]} 3. Bb5 {[%clk 0:04:55.3]} 3... a6 {[%clk 0:04:54.8]}
4. Ba4 {[%clk 0:04:54.3]} 4... Bc5 {[%clk 0:04:49.3]} 5. c3 {[%clk 0:04:51.2]}
5... d6 {[%clk 0:04:41.5]} 6. O-O {[%clk 0:04:49.4]} 6... b5 {[%clk 0:04:30.9]}
7. Bc2 {[%clk 0:04:47.4]} 7... Nf6 {[%clk 0:04:23.6]} 8. d4 {[%clk 0:04:43.9]}
8... exd4 {[%clk 0:04:14.6]} 9. cxd4 {[%clk 0:04:38.7]} 9... Bb6 {[%clk
0:04:12.4]} 10. Nc3 {[%clk 0:04:35.2]} 10... O-O {[%clk 0:04:03.7]} 11. Bg5
{[%clk 0:04:33.3]} 11... h6 {[%clk 0:04:00.8]} 12. Bxf6 {[%clk 0:04:32.4]} 12...
Qxf6 {[%clk 0:03:58.9]} 13. Nd5 {[%clk 0:04:32.3]} 13... Qd8 {[%clk 0:03:40.3]}
14. Nxb6 {[%clk 0:04:30]} 14... cxb6 {[%clk 0:03:38.9]} 15. d5 {[%clk
0:04:29.4]} 15... Ne7 {[%clk 0:03:25.4]} 16. Nd4 {[%clk 0:04:27.9]} 16... f5
{[%clk 0:03:20.7]} 17. Nxf5 {[%clk 0:04:23.3]} 17... Nxf5 {[%clk 0:03:17.8]} 18.
exf5 {[%clk 0:04:22.9]} 18... Bxf5 {[%clk 0:03:15.9]} 19. Bxf5 {[%clk
0:04:20.7]} 19... Rxf5 {[%clk 0:03:13.3]} 20. Qd3 {[%clk 0:04:20.3]} 20... Rh5
{[%clk 0:02:57.7]} 21. h3 {[%clk 0:04:16.2]} 21... Qg5 {[%clk 0:02:44.8]} 22.
Rad1 {[%clk 0:04:13]} 22... Rf8 {[%clk 0:02:31.5]} 23. Qe3 {[%clk 0:04:02.7]}
23... Qd8 {[%clk 0:02:13.9]} 24. Qe6+ {[%clk 0:03:57.8]} 24... Kh8 {[%clk
0:02:06.4]} 25. f4 {[%clk 0:03:54.6]} 25... Rhf5 {[%clk 0:02:01.6]} 26. Qe4
{[%clk 0:03:51.9]} 26... Qf6 {[%clk 0:01:51.4]} 27. Rd4 {[%clk 0:03:49.5]} 27...
Rc8 {[%clk 0:01:41.9]} 28. g4 {[%clk 0:03:46.4]} 28... Rxd5 {[%clk 0:01:32.6]}
29. Rxd5 {[%clk 0:03:34.3]} 29... Qxb2 {[%clk 0:01:30.2]} 30. Rxd6 {[%clk
0:03:28.9]} 30... Qxa2 {[%clk 0:01:23.6]} 31. Re6 {[%clk 0:03:26.3]} 31... Qa3
{[%clk 0:01:04.2]} 32. Re8+ {[%clk 0:03:16.9]} 32... Rxe8 {[%clk 0:01:01.6]} 33.
Qxe8+ {[%clk 0:03:16.1]} 33... Kh7 {[%clk 0:01:01]} 34. Qe4+ {[%clk 0:03:15]}
34... Kh8 {[%clk 0:00:57.1]} 35. Qf3 {[%clk 0:03:12.7]} 35... Qc5+ {[%clk
0:00:53.1]} 36. Qf2 {[%clk 0:03:03.1]} 36... b4 {[%clk 0:00:44.2]} 37. Qxc5
{[%clk 0:03:00.9]} 37... bxc5 {[%clk 0:00:44.1]} 38. Rc1 {[%clk 0:02:59.7]}
38... b3 {[%clk 0:00:39.1]} 39. Rxc5 {[%clk 0:02:58.5]} 39... b2 {[%clk
0:00:35.5]} 40. Rc8+ {[%clk 0:02:57.1]} 40... Kh7 {[%clk 0:00:33.9]} 41. Rb8
{[%clk 0:02:57]} 41... b1=Q+ {[%clk 0:00:32.4]} 42. Rxb1 {[%clk 0:02:55.6]}
42... a5 {[%clk 0:00:32.3]} 43. Ra1 {[%clk 0:02:54.6]} 43... a4 {[%clk
0:00:31.8]} 44. Rxa4 {[%clk 0:02:53.6]} 44... h5 {[%clk 0:00:31.7]} 45. g5
{[%clk 0:02:52.3]} 45... h4 {[%clk 0:00:27.6]} 46. Kf2 {[%clk 0:02:52.2]} 46...
Kg6 {[%clk 0:00:26.6]} 47. Kf3 {[%clk 0:02:52.1]} 47... Kh5 {[%clk 0:00:25.3]}
48. Ra1 {[%clk 0:02:48.1]} 48... g6 {[%clk 0:00:23.4]} 49. f5 {[%clk 0:02:46.8]}
49... Kxg5 {[%clk 0:00:21]} 50. fxg6 {[%clk 0:02:45.4]} 50... Kxg6 {[%clk
0:00:20.5]} 51. Kg4 {[%clk 0:02:45]} 51... Kh6 {[%clk 0:00:19.6]} 52. Ra6+
{[%clk 0:02:42.8]} 52... Kg7 {[%clk 0:00:18.2]} 53. Kf5 {[%clk 0:02:41.8]} 53...
Kh7 {[%clk 0:00:18.1]} 54. Rb6 {[%clk 0:02:40.2]} 54... Kg8 {[%clk 0:00:18]} 55.
Kf6 {[%clk 0:02:35.8]} 55... Kh7 {[%clk 0:00:16.9]} 56. Rb8 {[%clk 0:02:31.5]}
56... Kh6 {[%clk 0:00:15.1]} 57. Rh8# {[%clk 0:02:30.3]} 1-0

[Event "Live Chess"]
[Site "Chess.com"]
[Date "2024.06.01"]
[Round "-"]
[White "PureDashingOctopus"]
[Black "elephantgerrald"]
[Result "1-0"]
[WhiteElo "2246"]
[BlackElo "756"]
[TimeControl "300"]
[EndTime "11:22:26 PDT"]
[Termination "PureDashingOctopus won by checkmate"]

1. e4 {[%clk 0:04:58.6]} 1... e6 {[%clk 0:04:58.2]} 2. d4 {[%clk 0:04:57.5]}
2... d5 {[%clk 0:04:57.3]} 3. Nd2 {[%clk 0:04:56.7]} 3... Nc6 {[%clk 0:04:53]}
4. Ngf3 {[%clk 0:04:54.9]} 4... Nf6 {[%clk 0:04:51.5]} 5. e5 {[%clk 0:04:53.5]}
5... Ng4 {[%clk 0:04:49.1]} 6. h3 {[%clk 0:04:52.1]} 6... Nh6 {[%clk 0:04:45.9]}
7. Bd3 {[%clk 0:04:50.5]} 7... Be7 {[%clk 0:04:43.1]} 8. c3 {[%clk 0:04:49.2]}
8... O-O {[%clk 0:04:42]} 9. Nf1 {[%clk 0:04:48.7]} 9... Bd7 {[%clk 0:04:39.5]}
10. Bxh6 {[%clk 0:04:47.5]} 10... gxh6 {[%clk 0:04:38.2]} 11. Ng3 {[%clk
0:04:47.1]} 11... Bf6 {[%clk 0:04:33]} 12. exf6 {[%clk 0:04:45.7]} 12... Qxf6
{[%clk 0:04:31.7]} 13. Bc2 {[%clk 0:04:45.3]} 13... e5 {[%clk 0:04:29.6]} 14.
O-O {[%clk 0:04:34.7]} 14... exd4 {[%clk 0:04:27.8]} 15. Qd3 {[%clk 0:04:33]}
15... Ne5 {[%clk 0:04:19.2]} 16. Qxh7# {[%clk 0:04:30.5]} 1-0

[Event "Live Chess"]
[Site "Chess.com"]
[Date "2024.06.01"]
[Round "-"]
[White "CarmelJane"]
[Black "viktorskliarov"]
[Result "0-1"]
[WhiteElo "2085"]
[BlackElo "2646"]
[TimeControl "300"]
[EndTime "11:22:29 PDT"]
[Termination "viktorskliarov won by resignation"]

1. e4 {[%clk 0:04:58.2]} 1... c5 {[%clk 0:04:57.8]} 2. Nf3 {[%clk 0:04:57.1]}
2... Nc6 {[%clk 0:04:56.8]} 3. Bb5 {[%clk 0:04:55.4]} 3... e6 {[%clk 0:04:55.8]}
4. Bxc6 {[%clk 0:04:54.2]} 4... bxc6 {[%clk 0:04:54.5]} 5. d3 {[%clk 0:04:53.9]}
5... Ne7 {[%clk 0:04:53.1]} 6. O-O {[%clk 0:04:53.1]} 6... Ng6 {[%clk
0:04:52.2]} 7. Nc3 {[%clk 0:04:39.4]} 7... e5 {[%clk 0:04:51]} 8. Be3 {[%clk
0:04:36.7]} 8... Be7 {[%clk 0:04:49.4]} 9. Nd2 {[%clk 0:04:34.6]} 9... O-O
{[%clk 0:04:47.4]} 10. Ne2 {[%clk 0:04:33.7]} 10... d6 {[%clk 0:04:43.3]} 11. f4
{[%clk 0:04:30.8]} 11... f5 {[%clk 0:04:41]} 12. fxe5 {[%clk 0:04:28.4]} 12...
Nxe5 {[%clk 0:04:37.7]} 13. exf5 {[%clk 0:04:21.4]} 13... Bxf5 {[%clk
0:04:33.4]} 14. Ng3 {[%clk 0:04:16.2]} 14... Bg6 {[%clk 0:04:17.2]} 15. Nf3
{[%clk 0:03:57.2]} 15... Ng4 {[%clk 0:04:09.7]} 16. Bd2 {[%clk 0:03:46.1]} 16...
Bf6 {[%clk 0:03:47]} 17. Rb1 {[%clk 0:03:13.5]} 17... Rb8 {[%clk 0:03:38.8]} 18.
b3 {[%clk 0:03:11.2]} 18... Qd7 {[%clk 0:03:30.5]} 19. Ne4 {[%clk 0:03:02.2]}
19... Bxe4 {[%clk 0:03:13.8]} 20. dxe4 {[%clk 0:03:01.3]} 20... Rbe8 {[%clk
0:03:12.5]} 21. h3 {[%clk 0:02:37.9]} 21... Ne5 {[%clk 0:03:02.2]} 22. Be3
{[%clk 0:02:08.6]} 22... Nxf3+ {[%clk 0:02:47.4]} 23. Rxf3 {[%clk 0:02:08.5]}
23... Qe6 {[%clk 0:02:31.8]} 24. Bf2 {[%clk 0:01:34.4]} 24... Be5 {[%clk
0:02:24.3]} 25. Rxf8+ {[%clk 0:01:31.8]} 25... Rxf8 {[%clk 0:02:23.3]} 26. Qd3
{[%clk 0:01:30.2]} 26... Qf6 {[%clk 0:02:06.4]} 27. Rf1 {[%clk 0:01:23]} 27...
Qf4 {[%clk 0:02:01]} 28. g3 {[%clk 0:01:16]} 28... Qf3 {[%clk 0:01:30.2]} 29.
Be1 {[%clk 0:00:38.1]} 29... Bd4+ {[%clk 0:01:15.2]} 0-1

[Event "Live Chess"]
[Site "Chess.com"]
[Date "2024.06.01"]
[Round "-"]
[White "chessfiction"]
[Black "febray_27"]
[Result "1/2-1/2"]
[WhiteElo "2404"]
[BlackElo "2006"]
[TimeControl "300"]
[EndTime "11:22:41 PDT"]
[Termination "Game drawn - insufficient material"]

1. e4 {[%clk 0:04:53.7]} 1... Nf6 {[%clk 0:04:59.9]} 2. e5 {[%clk 0:04:52.4]}
2... Ng8 {[%clk 0:04:55.5]} 3. Nc3 {[%clk 0:04:52.3]} 3... d5 {[%clk 0:04:54.7]}
4. exd6 {[%clk 0:04:50.4]} 4... Qxd6 {[%clk 0:04:53.8]} 5. Nf3 {[%clk
0:04:50.3]} 5... Nf6 {[%clk 0:04:52.6]} 6. d4 {[%clk 0:04:50.2]} 6... g6 {[%clk
0:04:51.4]} 7. Bc4 {[%clk 0:04:48.9]} 7... Bg7 {[%clk 0:04:48]} 8. Ne5 {[%clk
0:04:48]} 8... O-O {[%clk 0:04:46.8]} 9. Bf4 {[%clk 0:04:47.1]} 9... Qb4 {[%clk
0:04:40.1]} 10. Bb3 {[%clk 0:04:19.3]} 10... Ne4 {[%clk 0:04:36.3]} 11. O-O
{[%clk 0:04:11.3]} 11... Nxc3 {[%clk 0:04:33]} 12. Qe1 {[%clk 0:03:42.6]} 12...
Ne2+ {[%clk 0:04:29.9]} 13. Qxe2 {[%clk 0:03:39.9]} 13... Qxd4 {[%clk
0:04:29.3]} 14. Bg3 {[%clk 0:03:30.3]} 14... Qxb2 {[%clk 0:04:13.6]} 15. Nxf7
{[%clk 0:03:27.9]} 15... Rxf7 {[%clk 0:03:55.5]} 16. Qxe7 {[%clk 0:03:26.4]}
16... Qxb3 {[%clk 0:03:45.9]} 17. Qd8+ {[%clk 0:03:10.3]} 17... Rf8 {[%clk
0:03:41.7]} 18. Qxf8+ {[%clk 0:02:55.9]} 18... Kxf8 {[%clk 0:03:36.7]} 19. axb3
{[%clk 0:02:54.8]} 19... Na6 {[%clk 0:03:22.5]} 20. Rad1 {[%clk 0:02:50.7]}
20... Bf5 {[%clk 0:03:19.4]} 21. Rfe1 {[%clk 0:02:47.2]} 21... Bxc2 {[%clk
0:03:12.7]} 22. Rd7 {[%clk 0:02:45.3]} 22... Bf5 {[%clk 0:02:27.3]} 23. Rde7
{[%clk 0:02:33.2]} 23... Rc8 {[%clk 0:02:08.3]} 24. h4 {[%clk 0:02:30.3]} 24...
h5 {[%clk 0:02:07.2]} 25. Bf4 {[%clk 0:02:26.1]} 25... Nc5 {[%clk 0:01:51]} 26.
Bxc7 {[%clk 0:02:20.2]} 26... Nxb3 {[%clk 0:01:47.9]} 27. Bd6 {[%clk 0:02:17.3]}
27... Kg8 {[%clk 0:01:45.1]} 28. Rxb7 {[%clk 0:02:12.8]} 28... Bd4 {[%clk
0:01:32]} 29. Ree7 {[%clk 0:02:08.1]} 29... Nc5 {[%clk 0:01:24.3]} 30. Bxc5
{[%clk 0:01:55.4]} 30... Bxc5 {[%clk 0:01:19.2]} 31. Rg7+ {[%clk 0:01:54]} 31...
Kf8 {[%clk 0:01:14.9]} 32. Rbf7+ {[%clk 0:01:52]} 32... Ke8 {[%clk 0:01:14.3]}
33. Rb7 {[%clk 0:01:51.9]} 33... Bf8 {[%clk 0:01:09.5]} 34. Rg8 {[%clk 0:01:43]}
34... a5 {[%clk 0:01:07.8]} 35. Ra7 {[%clk 0:01:39.9]} 35... a4 {[%clk
0:00:54.1]} 36. Rxa4 {[%clk 0:01:36.5]} 36... Kf7 {[%clk 0:00:53.5]} 37. Rh8
{[%clk 0:01:33.7]} 37... Kg7 {[%clk 0:00:52.1]} 38. Rxf8 {[%clk 0:01:31.2]}
38... Kxf8 {[%clk 0:00:51]} 39. f3 {[%clk 0:01:29]} 39... Kg7 {[%clk 0:00:50.2]}
40. Kh2 {[%clk 0:01:26.9]} 40... Kf6 {[%clk 0:00:49.1]} 41. Kg3 {[%clk
0:01:25.5]} 41... Rc6 {[%clk 0:00:48.3]} 42. Rd4 {[%clk 0:01:23.3]} 42... Re6
{[%clk 0:00:47.3]} 43. Rb4 {[%clk 0:01:22.1]} 43... g5 {[%clk 0:00:46.3]} 44.
hxg5+ {[%clk 0:01:20.7]} 44... Kxg5 {[%clk 0:00:46.2]} 45. Kf2 {[%clk
0:01:20.3]} 45... Rd6 {[%clk 0:00:44.6]} 46. g4 {[%clk 0:01:19.4]} 46... hxg4
{[%clk 0:00:43.7]} 47. fxg4 {[%clk 0:01:18.5]} 47... Bxg4 {[%clk 0:00:42.3]} 48.
Kg3 {[%clk 0:01:17.9]} 48... Rd3+ {[%clk 0:00:41.3]} 49. Kf2 {[%clk 0:01:17]}
49... Bf5 {[%clk 0:00:40.6]} 50. Ke2 {[%clk 0:01:15.2]} 50... Ra3 {[%clk
0:00:39.4]} 51. Rb2 {[%clk 0:01:13.6]} 51... Kf4 {[%clk 0:00:37.6]} 52. Rb4+
{[%clk 0:01:12.5]} 52... Be4 {[%clk 0:00:37]} 53. Rb8 {[%clk 0:01:11.2]} 53...
Ra2+ {[%clk 0:00:35.5]} 54. Kd1 {[%clk 0:01:10.6]} 54... Ke3 {[%clk 0:00:34.9]}
55. Kc1 {[%clk 0:01:08.9]} 55... Rh2 {[%clk 0:00:27.1]} 56. Re8 {[%clk
0:01:03.3]} 56... Kd3 {[%clk 0:00:24.8]} 57. Rd8+ {[%clk 0:01:02.5]} 57... Kc3
{[%clk 0:00:24.1]} 58. Rc8+ {[%clk 0:01:01.2]} 58... Kd3 {[%clk 0:00:22.3]} 59.
Rd8+ {[%clk 0:01:00.2]} 59... Ke3 {[%clk 0:00:20.8]} 60. Re8 {[%clk 0:00:54.7]}
60... Rc2+ {[%clk 0:00:20.2]} 61. Kd1 {[%clk 0:00:52.9]} 61... Rc5 {[%clk
0:00:19]} 62. Re7 {[%clk 0:00:46]} 62... Kf2 {[%clk 0:00:17.7]} 63. Rxe4 {[%clk
0:00:44.3]} 63... Kf3 {[%clk 0:00:15.4]} 64. Rd4 {[%clk 0:00:43.3]} 64... Ke3
{[%clk 0:00:14.5]} 65. Rd8 {[%clk 0:00:41.5]} 65... Rc4 {[%clk 0:00:14]} 66. Ke1
{[%clk 0:00:40.2]} 66... Rc1+ {[%clk 0:00:13]} 67. Rd1 {[%clk 0:00:38.1]} 67...
Rxd1+ {[%clk 0:00:12.9]} 68. Kxd1 {[%clk 0:00:37.9]} 1/2-1/2

[Event "Live Chess"]
[Site "Chess.com"]
[Date "2024.06.01"]
[Round "-"]
[White "Ferrarifan27"]
[Black "RomanKifliuk"]
[Result "1/2-1/2"]
[WhiteElo "2068"]
[BlackElo "2338"]
[TimeControl "300"]
[EndTime "11:22:44 PDT"]
[Termination "Game drawn by repetition"]

1. e4 {[%clk 0:04:55.8]} 1... e5 {[%clk 0:04:58.6]} 2. Nf3 {[%clk 0:04:54.2]}
2... Nc6 {[%clk 0:04:55.2]} 3. Bb5 {[%clk 0:04:52.8]} 3... f5 {[%clk 0:04:53.2]}
4. d3 {[%clk 0:04:51]} 4... Nf6 {[%clk 0:04:49.9]} 5. Nc3 {[%clk 0:04:41.1]}
5... Be7 {[%clk 0:04:45.3]} 6. O-O {[%clk 0:04:39.6]} 6... O-O {[%clk
0:04:43.8]} 7. Re1 {[%clk 0:04:37.5]} 7... d6 {[%clk 0:04:42.6]} 8. Bg5 {[%clk
0:04:33.6]} 8... fxe4 {[%clk 0:04:40.5]} 9. dxe4 {[%clk 0:04:32.3]} 9... Bg4
{[%clk 0:04:39.6]} 10. Qd3 {[%clk 0:04:28.5]} 10... Kh8 {[%clk 0:04:02]} 11. a3
{[%clk 0:04:20.4]} 11... Nh5 {[%clk 0:03:28.1]} 12. Bxe7 {[%clk 0:04:11.5]}
12... Qxe7 {[%clk 0:03:26.2]} 13. Nd5 {[%clk 0:04:09.1]} 13... Qd7 {[%clk
0:03:18.9]} 14. Nd2 {[%clk 0:03:59.3]} 14... Be6 {[%clk 0:02:52]} 15. g3 {[%clk
0:03:55.6]} 15... Qf7 {[%clk 0:02:37.9]} 16. f3 {[%clk 0:03:39.8]} 16... Nd4
{[%clk 0:02:26.6]} 17. Rf1 {[%clk 0:03:37.8]} 17... c6 {[%clk 0:01:32.4]} 18.
Ba4 {[%clk 0:03:16.4]} 18... cxd5 {[%clk 0:01:27.9]} 19. exd5 {[%clk 0:03:11.8]}
19... Bxd5 {[%clk 0:01:26]} 20. c3 {[%clk 0:03:08.8]} 20... Nc6 {[%clk
0:01:21.6]} 21. c4 {[%clk 0:03:01.3]} 21... Be6 {[%clk 0:01:19.4]} 22. Ne4
{[%clk 0:02:53.4]} 22... Nd4 {[%clk 0:01:17.3]} 23. Nxd6 {[%clk 0:02:47.4]}
23... Qe7 {[%clk 0:01:09.9]} 24. Ne4 {[%clk 0:02:39.9]} 24... Rad8 {[%clk
0:01:01.7]} 25. Qe3 {[%clk 0:02:32.4]} 25... Bh3 {[%clk 0:00:58.4]} 26. Rf2
{[%clk 0:02:28.8]} 26... Bf5 {[%clk 0:00:50.3]} 27. Nd2 {[%clk 0:02:19.4]} 27...
Bd7 {[%clk 0:00:44.6]} 28. Bxd7 {[%clk 0:02:15.9]} 28... Rxd7 {[%clk 0:00:40.3]}
29. Ne4 {[%clk 0:02:15]} 29... Rfd8 {[%clk 0:00:31.6]} 30. Raf1 {[%clk
0:02:12.3]} 30... h6 {[%clk 0:00:28.7]} 31. b3 {[%clk 0:02:08.8]} 31... Nf5
{[%clk 0:00:25.5]} 32. Qc1 {[%clk 0:02:04.7]} 32... Rd3 {[%clk 0:00:23.4]} 33.
Nc3 {[%clk 0:02:01.1]} 33... Nd4 {[%clk 0:00:19.3]} 34. Nd5 {[%clk 0:01:58.3]}
34... Qf7 {[%clk 0:00:17.5]} 35. b4 {[%clk 0:01:46.3]} 35... Rf8 {[%clk
0:00:15.6]} 36. a4 {[%clk 0:01:38.2]} 36... Rxf3 {[%clk 0:00:13.4]} 37. Rxf3
{[%clk 0:01:37.3]} 37... Nxf3+ {[%clk 0:00:12.4]} 38. Kh1 {[%clk 0:01:36.4]}
38... e4 {[%clk 0:00:11.8]} 39. Qe3 {[%clk 0:01:31.8]} 39... Nxg3+ {[%clk
0:00:10.8]} 40. Kg2 {[%clk 0:01:21.4]} 40... Nxf1 {[%clk 0:00:09.8]} 41. Qxe4
{[%clk 0:01:16.9]} 41... N3xh2 {[%clk 0:00:06.7]} 42. Nf4 {[%clk 0:00:59.2]}
42... Qf6 {[%clk 0:00:04.7]} 43. Ng6+ {[%clk 0:00:57.4]} 43... Kg8 {[%clk
0:00:03.8]} 44. Ne7+ {[%clk 0:00:55.8]} 44... Kh8 {[%clk 0:00:02.7]} 45. Ng6+
{[%clk 0:00:54.6]} 45... Kg8 {[%clk 0:00:01.8]} 46. Ne7+ {[%clk 0:00:53.9]}
46... Kh8 {[%clk 0:00:01]} 47. Ng6+ {[%clk 0:00:53.1]} 1/2-1/2

[Event "Live Chess"]
[Site "Chess.com"]
[Date "2024.06.01"]
[Round "-"]
[White "ogpin"]
[Black "WilliamofOrange16th"]
[Result "0-1"]
[WhiteElo "2204"]
[BlackElo "1956"]
[TimeControl "300"]
[EndTime "11:22:55 PDT"]
[Termination "WilliamofOrange16th won by checkmate"]

1. a4 {[%clk 0:04:57.7]} 1... g6 {[%clk 0:04:52.8]} 2. Ra3 {[%clk 0:04:57.6]}
2... Bg7 {[%clk 0:04:51.7]} 3. g3 {[%clk 0:04:55.5]} 3... d5 {[%clk 0:04:48.3]}
4. Bg2 {[%clk 0:04:54.5]} 4... c6 {[%clk 0:04:47.6]} 5. Nf3 {[%clk 0:04:49.8]}
5... e5 {[%clk 0:04:46.1]} 6. d3 {[%clk 0:04:46.3]} 6... Be6 {[%clk 0:04:44.3]}
7. O-O {[%clk 0:04:45.5]} 7... Nd7 {[%clk 0:04:43.6]} 8. b4 {[%clk 0:04:43.5]}
8... f5 {[%clk 0:04:41.4]} 9. b5 {[%clk 0:04:40.8]} 9... e4 {[%clk 0:04:37.4]}
10. d4 {[%clk 0:04:37.6]} 10... exf3 {[%clk 0:04:35.5]} 11. Bxf3 {[%clk
0:04:35.2]} 11... Ngf6 {[%clk 0:04:27.1]} 12. Bf4 {[%clk 0:04:30.2]} 12... Ne4
{[%clk 0:04:21.7]} 13. c4 {[%clk 0:04:28.8]} 13... O-O {[%clk 0:04:13.5]} 14.
Nc3 {[%clk 0:04:24.7]} 14... Ndf6 {[%clk 0:04:08.9]} 15. e3 {[%clk 0:04:13.4]}
15... Nxc3 {[%clk 0:04:06.8]} 16. Rxc3 {[%clk 0:04:13.3]} 16... Ne4 {[%clk
0:04:05.2]} 17. Rc1 {[%clk 0:04:01.8]} 17... dxc4 {[%clk 0:03:56.7]} 18. Qc2
{[%clk 0:03:55.7]} 18... cxb5 {[%clk 0:03:53.9]} 19. axb5 {[%clk 0:03:52.1]}
19... Bd5 {[%clk 0:03:48.7]} 20. Qa4 {[%clk 0:03:51.1]} 20... b6 {[%clk
0:03:32.1]} 21. Rfd1 {[%clk 0:03:46.5]} 21... Qe7 {[%clk 0:03:19.4]} 22. h4
{[%clk 0:03:45.2]} 22... h6 {[%clk 0:03:18.2]} 23. Be2 {[%clk 0:03:22.8]} 23...
c3 {[%clk 0:02:39.4]} 24. f3 {[%clk 0:03:14.4]} 24... Nd6 {[%clk 0:02:25.6]} 25.
Rxc3 {[%clk 0:03:06.3]} 25... g5 {[%clk 0:02:24.4]} 26. hxg5 {[%clk 0:03:04.8]}
26... hxg5 {[%clk 0:02:23.3]} 27. Be5 {[%clk 0:02:53.8]} 27... Bxe5 {[%clk
0:02:21.8]} 28. dxe5 {[%clk 0:02:53.7]} 28... Qxe5 {[%clk 0:02:21.3]} 29. Kf2
{[%clk 0:02:51.9]} 29... Qxc3 {[%clk 0:01:57.5]} 30. Rxd5 {[%clk 0:02:45.8]}
30... Rad8 {[%clk 0:01:47.3]} 31. Rd3 {[%clk 0:02:26.2]} 31... Qc5 {[%clk
0:01:44.5]} 32. Qxa7 {[%clk 0:02:19.9]} 32... f4 {[%clk 0:01:40.4]} 33. Qa2+
{[%clk 0:02:15.7]} 33... Kh7 {[%clk 0:01:20]} 34. gxf4 {[%clk 0:02:11]} 34...
gxf4 {[%clk 0:01:18.3]} 35. Qb1 {[%clk 0:01:59.2]} 35... fxe3+ {[%clk
0:01:12.7]} 36. Rxe3+ {[%clk 0:01:59.1]} 36... Nf5 {[%clk 0:01:12]} 37. Qe4
{[%clk 0:01:41.1]} 37... Qxe3+ {[%clk 0:01:08.6]} 38. Qxe3 {[%clk 0:01:41]}
38... Nxe3 {[%clk 0:01:07.5]} 39. Kxe3 {[%clk 0:01:40.9]} 39... Rfe8+ {[%clk
0:01:06.9]} 40. Kf2 {[%clk 0:01:39.4]} 40... Rd2 {[%clk 0:01:06.1]} 41. f4
{[%clk 0:01:37]} 41... Rdxe2+ {[%clk 0:01:02.7]} 42. Kf3 {[%clk 0:01:36.9]}
42... Rb2 {[%clk 0:00:59.2]} 43. Kg4 {[%clk 0:01:36.8]} 43... Rxb5 {[%clk
0:00:58.3]} 44. f5 {[%clk 0:01:34.5]} 44... Rxf5 {[%clk 0:00:57.3]} 45. Kxf5
{[%clk 0:01:31.6]} 45... b5 {[%clk 0:00:57.2]} 46. Kf6 {[%clk 0:01:31.1]} 46...
b4 {[%clk 0:00:56.7]} 47. Kf7 {[%clk 0:01:31]} 47... Re1 {[%clk 0:00:55.8]} 48.
Kf6 {[%clk 0:01:26.8]} 48... b3 {[%clk 0:00:55.7]} 49. Kf5 {[%clk 0:01:26.7]}
49... b2 {[%clk 0:00:55.2]} 50. Kf4 {[%clk 0:01:26.6]} 50... b1=Q {[%clk
0:00:53.9]} 51. Kg5 {[%clk 0:01:26.5]} 51... Rf1 {[%clk 0:00:27.8]} 52. Kh5
{[%clk 0:01:26.4]} 52... Rg1 {[%clk 0:00:17.9]} 53. Kh4 {[%clk 0:01:26.3]} 53...
Qe4+ {[%clk 0:00:15.3]} 54. Kh5 {[%clk 0:01:26.2]} 54... Qh1# {[%clk 0:00:12.9]}
0-1